Workbook

Sheet Transition Matrices
A1: Model Inputs | H1: Transition Matrix: Treatment A | BB1: txA_cost | BC1: txA_QALY | BD1: txB_cost | BE1: txB_QALY
AA2: Transition Matrix: Treatment B | BB2: =$R$87 -> 14179.82738 | BC2: =$V$87 -> 1.027897647 | BD2: =$AK$87 ->  | BE2: =$AO$87 -> 
J3: SILENT | K3: ACTIVE | L3: COMPL | M3: DEAD | AC3: SILENT | AD3: ACTIVE | AE3: COMPL | AF3: DEAD
I4: SILENT | J4: =1-K4-L4-M4 -> 0.904 | K4: =p_active_A -> 0.088 | L4: =p_compl_sil_A -> 0.008 | M4: =p_dead_sil_A -> 0 | AB4: SILENT | AC4: =1-AD4-AE4-AF4 ->  | AD4: =p_active_B -> NA | AE4: =p_compl_sil_B -> 0.1230769231 | AF4: =p_dead_sil_B -> 0.01538461538 | BA4: numruns | BB4: 100
I5: ACTIVE | J5: =p_success_A -> 0.2119047619 | K5: =1-J5-L5-M5 -> 0.6892857143 | L5: =p_compl_act_A -> 0.09761904762 | M5: =p_dead_act_A -> 0.00119047619 | AB5: ACTIVE | AC5: =p_success_B -> 0.2119047619 | AD5: =1-AC5-AE5-AF5 -> 0.6892857143 | AE5: =p_compl_act_B -> 0.09761904762 | AF5: =p_dead_act_B -> 0.00119047619
I6: COMPL | J6: 0 | K6: 0 | L6: =1-M6 -> 0.9965059399 | M6: =p_dead_cmp_A -> 0.003494060098 | AB6: COMPL | AC6: 0 | AD6: 0 | AE6: =1-AF6 -> 0.9965059399 | AF6: =p_dead_cmp_B -> 0.003494060098 | AQ6: Incremental analysis
I7: DEAD | J7: 0 | K7: 0 | L7: 0 | M7: 1 | AB7: DEAD | AC7: 0 | AD7: 0 | AE7: 0 | AF7: 1
BB8: txA_cost | BC8: txA_QALY | BD8: txB_cost | BE8: txB_QALY
AT9: COSTS | AU9: OUTCOMES | AV9: NET BENEFIT | BA9: 1 | BB9: 12863.41138 | BC9: 1.465421538 | BD9: 20545.91168 | BE9: 0.6903923645
AR10: Treatment A | AT10: =$R$87 -> 14179.82738 | AU10: =$V$87 -> 1.027897647 | AV10: =AU10*lambda-AT10 -> 16657.10203 | BA10: =1+BA9 -> 2 | BB10: 17129.95927 | BC10: -0.09377442305 | BD10: 21328.08054 | BE10: -0.06525133813
AR11: Treatment B | AT11: =$AK$87 ->  | AU11: =$AO$87 ->  | AV11: =AU11*lambda-AT11 ->  | BA11: =1+BA10 -> 3 | BB11: 17480.42182 | BC11: -0.07972388585 | BD11: 20873.29247 | BE11: 0.1120490339
BA12: 4 | BB12: 14462.22094 | BC12: 0.7468232711 | BD12: 20580.737 | BE12: 0.4379593024
BA13: 5 | BB13: 15544.34219 | BC13: 1.313024309 | BD13: 21631.88063 | BE13: 1.306114338
AR14: Incremental | AT14: =AT11-AT10 ->  | BA14: 6 | BB14: 17268.5531 | BC14: -0.09228942698 | BD14: 21317.67371 | BE14: 0.3281713992
AT15: for | AU15: =AU11-AU10 ->  | AV15: QALYs | BA15: 7 | BB15: 18286.0129 | BC15: 0.4033318642 | BD15: 21673.66047 | BE15: 0.8276256674
BA16: 8 | BB16: 16134.47851 | BC16: 1.358857658 | BD16: 21790.26686 | BE16: 1.475822144
AR17: ICER | AT17: =AT14/AU15 ->  | AU17: per QALY | BA17: 9 | BB17: 12362.02502 | BC17: 1.870550147 | BD17: 21553.12338 | BE17: 1.14399369
BA18: 10 | BB18: 17563.58691 | BC18: 0.7012450877 | BD18: 21502.36913 | BE18: 0.9212197542
H19: TREATMENT A | AA19: TREATMENT B | BA19: 11 | BB19: 13913.86955 | BC19: 2.165746944 | BD19: 21251.54804 | BE19: 1.9716324
J20: PROBABILITIES | O20: COSTS | S20: OUTCOMES | AC20: PROBABILITIES | AH20: COSTS | AL20: OUTCOMES | BA20: 12 | BB20: 15982.78478 | BC20: 0.8686943974 | BD20: 20253.92139 | BE20: 0.8022931277
A21: PROBABILITIES | B21: Treatment A | C21: Treatment B | H21: YEARS | I21: PERIOD | J21: SILENT | K21: ACTIVE | L21: COMPL | M21: DEAD | N21: discount | O21: SILENT | P21: ACTIVE | Q21: COMPL | R21: DEAD | S21: SILENT | T21: ACTIVE | U21: COMPL | V21: DEAD | AA21: YEARS | AB21: PERIOD | AC21: SILENT | AD21: ACTIVE | AE21: COMPL | AF21: DEAD | AG21: discount | AH21: SILENT | AI21: ACTIVE | AJ21: COMPL | AK21: DEAD | AL21: SILENT | AM21: ACTIVE | AN21: COMPL | AO21: DEAD | BA21: 13 | BB21: 16507.71409 | BC21: 1.437404409 | BD21: 21351.57108 | BE21: 1.582696077
A22: p_active | B22: =Parameters!D22 -> 0.088 | C22: =Parameters!D32 -> NA | H22: =TEXT((I22-MOD(I22-1,12))/12,"0")&"."&TEXT(MOD(I22-1,12), "00") -> 0.00 | I22: 1 | J22: 0 | K22: 1 | L22: 0 | M22: 0 | N22: 1 | O22: =c_sil_A*J22*N22 -> 0 | P22: =c_act_A*K22*N22 -> 122.4295517 | Q22: =c_compl_A*L22*N22 -> 0 | R22: =c_dead_A*M22*N22 -> 0 | S22: =u_sil*J22*N22 -> 0 | T22: =u_act*K22*N22 -> 0.05441666667 | U22: =u_compl*L22*N22 -> 0 | V22: =u_dead*M22*N22 -> 0 | AA22: =TEXT((AB22-MOD(AB22-1,12))/12,"0")&"."&TEXT(MOD(AB22-1,12), "00") -> 0.00 | AB22: 1 | AC22: 0 | AD22: 1 | AE22: 0 | AF22: 0 | AG22: 1 | AH22: =c_sil_B*AC22*AG22 -> 0 | AI22: =c_act_B*AD22*AG22 -> 484.4295517 | AJ22: =c_compl_B*AE22*AG22 -> 0 | AK22: =c_dead_B*AF22*AG22 -> 0 | AL22: =u_sil*AC22*AG22 -> 0 | AM22: =u_act*AD22*AG22 -> 0.05441666667 | AN22: =u_compl*AE22*AG22 -> 0 | AO22: =u_dead*AF22*AG22 -> 0 | BA22: 14 | BB22: 18600.85815 | BC22: 0.4450784913 | BD22: 21728.10678 | BE22: 1.073364806
A23: p_success | B23: =Parameters!D36 -> 0.2119047619 | C23: =Parameters!D36 -> 0.2119047619 | H23: =TEXT((I23-MOD(I23-1,12))/12,"0")&"."&TEXT(MOD(I23-1,12), "00") -> 0.01 | I23: =1+I22 -> 2 | J23: =MMULT(J22:M22,J$4:M$7) -> 0.2119047619 | K23: 0.6892857143 | L23: 0.09761904762 | M23: 0.00119047619 | N23: =N22 -> 1 | O23: =c_sil_A*J23*N23 -> 13.03629661 | P23: 84.388941 | Q23: 38.75443354 | R23: 0 | S23: 0.0144625 | T23: 0.03750863095 | U23: -0.001114484127 | V23: 0 | AA23: =TEXT((AB23-MOD(AB23-1,12))/12,"0")&"."&TEXT(MOD(AB23-1,12), "00") -> 0.01 | AB23: =1+AB22 -> 2 | AC23: =MMULT(AC22:AF22,AC$4:AF$7) ->  | AG23: =AG22 -> 1 | BA23: 15 | BB23: 13165.6248 | BC23: 1.406517471 | BD23: 20946.05314 | BE23: 0.7534983338
A24: p_compl_sil | B24: =Parameters!D23 -> 0.008 | C24: =Parameters!D33 -> 0.1230769231 | H24: 0.02 | I24: =1+I23 -> 3 | J24: =MMULT(J23:M23,J$4:M$7) -> 0.3376248299 | K24: 0.493762415 | L24: 0.1662606139 | M24: 0.002352141241 | N24: =N23 -> 1 | O24: 20.77054515 | P24: 60.45111111 | Q24: 66.00490444 | R24: 0 | S24: 0.02304289464 | T24: 0.02686890475 | U24: -0.001898142008 | V24: 0 | AA24: 0.02 | AB24: =1+AB23 -> 3 | AC24: =MMULT(AC23:AF23,AC$4:AF$7) ->  | AG24: =AG23 -> 1 | BA24: 16 | BB24: 13114.1367 | BC24: 0.7641632617 | BD24: 21427.31697 | BE24: 0.2882949492
A25: p_compl_act | B25: =Parameters!D38 -> 0.09761904762 | C25: =Parameters!D38 -> 0.09761904762 | H25: 0.03 | I25: 4 | J25: =MMULT(J24:M24,J$4:M$7) -> 0.4098434532 | K25: 0.3700543639 | L25: 0.2165813046 | M25: 0.003520878216 | N25: 1 | O25: 25.21340611 | P25: 45.30558988 | Q25: 85.98204941 | R25: 0 | S25: 0.02797181568 | T25: 0.02013712497 | U25: -0.002472636561 | V25: 0 | AA25: 0.03 | AB25: 4 | AC25: =MMULT(AC24:AF24,AC$4:AF$7) ->  | AG25: 1 | BA25: 17 | BB25: 17381.0597 | BC25: 1.245068914 | BD25: 21818.51468 | BE25: 1.441059545
A26: p_dead_sil | B26: =Parameters!D24 -> 0 | C26: =Parameters!D34 -> 0.01538461538 | H26: 0.04 | I26: 5 | J26: =MMULT(J25:M25,J$4:M$7) -> 0.4489147636 | K26: 0.2911394104 | L26: 0.2552276587 | M26: 0.00471816722 | N26: 1 | O26: 27.61705757 | P26: 35.6440675 | Q26: 101.324522 | R26: 0 | S26: 0.03063843262 | T26: 0.01584283625 | U26: -0.002913849104 | V26: 0 | AA26: 0.04 | AB26: 5 | AC26: =MMULT(AC25:AF25,AC$4:AF$7) ->  | AG26: 1 | BA26: 18 | BB26: 15070.67878 | BC26: 1.255056175 | BD26: 20993.25752 | BE26: 1.831870677
A27: p_dead_act | B27: =Parameters!D39 -> 0.00119047619 | C27: =Parameters!D39 -> 0.00119047619 | H27: 0.05 | I27: 6 | J27: =MMULT(J26:M26,J$4:M$7) -> 0.4675127738 | K27: 0.2401827357 | L27: 0.286347948 | M27: 0.005956542535 | N27: 1 | O27: 28.76119976 | P27: 29.40546466 | Q27: 113.6791722 | R27: 0 | S27: 0.03190774681 | T27: 0.01306994387 | U27: -0.003269139073 | V27: 0 | AA27: 0.05 | AB27: 6 | AC27: =MMULT(AC26:AF26,AC$4:AF$7) ->  | AG27: 1 | BA27: 19 | BB27: 14050.80792 | BC27: 1.710498818 | BD27: 21729.70282 | BE27: 1.336830758
A28: p_dead_cmp | B28: =Parameters!D42 -> 0.003494060098 | C28: =Parameters!D42 -> 0.003494060098 | H28: 0.06 | I28: 7 | J28: =MMULT(J27:M27,J$4:M$7) -> 0.4735274129 | K28: 0.2066956526 | L28: 0.3125339432 | M28: 0.007242991302 | N28: 1 | O28: 29.13121796 | P28: 25.30565609 | Q28: 124.0749242 | R28: 0 | S28: 0.03231824593 | T28: 0.01124768843 | U28: -0.003568095851 | V28: 0 | AA28: 0.06 | AB28: 7 | AC28: =MMULT(AC27:AF27,AC$4:AF$7) ->  | AG28: 1 | BA28: 20 | BB28: 16788.82646 | BC28: 0.6865608056 | BD28: 21083.33118 | BE28: 0.6420575077
H29: 0.07 | I29: 8 | J29: =MMULT(J28:M28,J$4:M$7) -> 0.4718685743 | K29: 0.1841427729 | L29: 0.3354075829 | M29: 0.008581069935 | N29: 1 | O29: 29.02916687 | P29: 22.54451713 | Q29: 133.1556822 | R29: 0 | S29: 0.0322050302 | T29: 0.01002043589 | U29: -0.003829236571 | V29: 0 | AA29: 0.07 | AB29: 8 | AC29: =MMULT(AC28:AF28,AC$4:AF$7) ->  | AG29: 1 | BA29: 21 | BB29: 16688.32328 | BC29: 1.020089504 | BD29: 21096.41478 | BE29: 1.092976148
A30: COSTS | B30: Treatment A | C30: Treatment B | H30: 0.08 | I30: 9 | J30: =MMULT(J29:M29,J$4:M$7) -> 0.4655899216 | K30: 0.1684514173 | L30: 0.3559864393 | M30: 0.009972221774 | N30: 1 | O30: 28.64290666 | P30: 20.6234315 | Q30: 141.325419 | R30: 0 | S30: 0.03177651215 | T30: 0.009166564624 | U30: -0.004064178516 | V30: 0 | AA30: 0.08 | AB30: 9 | AC30: =MMULT(AC29:AF29,AC$4:AF$7) ->  | AG30: 1 | BA30: 22 | BB30: 14390.68821 | BC30: 1.301240261 | BD30: 20710.82 | BE30: 1.013699761
A31: SILENT | B31: =Parameters!D7+Parameters!D10 -> 61.51960197 | C31: =Parameters!D7+Parameters!D11 -> 423.519602 | H31: 0.09 | I31: 10 | J31: =MMULT(J30:M30,J$4:M$7) -> 0.4565889466 | K31: 0.1570830686 | L31: 0.3749113876 | M31: 0.01141659719 | N31: 1 | O31: 28.08917026 | P31: 19.23160967 | Q31: 148.8385598 | R31: 0 | S31: 0.03116219561 | T31: 0.008547936982 | U31: -0.004280238342 | V31: 0 | AA31: 0.09 | AB31: 10 | AC31: =MMULT(AC30:AF30,AC$4:AF$7) ->  | AG31: 1 | BA31: 23 | BB31: 17057.05765 | BC31: 0.7032635168 | BD31: 21830.37294 | BE31: 0.8077663577
A32: ACTIVE | B32: =Parameters!D8+Parameters!D10 -> 122.4295517 | C32: =Parameters!D8+Parameters!D11 -> 484.4295517 | H32: 0.10 | I32: 11 | J32: =MMULT(J31:M31,J$4:M$7) -> 0.446043058 | K32: 0.1484549424 | L32: 0.3925884358 | M32: 0.01291356376 | N32: 1 | O32: 27.44039139 | P32: 18.17527205 | Q32: 155.8562884 | R32: 0 | S32: 0.03044243871 | T32: 0.008078423117 | U32: -0.004482051309 | V32: 0 | AA32: 0.10 | AB32: 11 | AC32: =MMULT(AC31:AF31,AC$4:AF$7) ->  | AG32: 1 | BA32: 24 | BB32: 16365.91819 | BC32: 0.3032799242 | BD32: 21129.58114 | BE32: 0.3088312509
A33: COMPL | B33: =Parameters!D9 -> 396.9966362 | C33: =Parameters!E9 -> 396.9966362 | H33: 0.11 | I33: 12 | J33: =MMULT(J32:M32,J$4:M$7) -> 0.4346812336 | K33: 0.1415796601 | L33: 0.4092770828 | M33: 0.01446202342 | N33: 1 | O33: 26.74141648 | P33: 17.33353432 | Q33: 162.4816252 | R33: 0 | S33: 0.0296669942 | T33: 0.007704293172 | U33: -0.004672580029 | V33: 0 | AA33: 0.11 | AB33: 12 | AC33: =MMULT(AC32:AF32,AC$4:AF$7) ->  | AG33: 1 | BA33: 25 | BB33: 12499.56273 | BC33: 2.060068686 | BD33: 20474.34621 | BE33: 1.671380477
A34: DEAD | B34: 0 | C34: 0 | H34: 1.00 | I34: 13 | J34: =MMULT(J33:M33,J$4:M$7) -> 0.4229532394 | K34: 0.1358407857 | L34: 0.4251453655 | M34: 0.01606060936 | N34: =N22/(1+disc) -> 0.9661835749 | O34: 25.14001443 | P34: 16.06852802 | Q34: 163.0737005 | R34: 0 | S34: 0.02789039477 | T34: 0.007142031649 | U34: -0.004689606689 | V34: 0 | AA34: 1.00 | AB34: 13 | AC34: =MMULT(AC33:AF33,AC$4:AF$7) ->  | AG34: =AG22/(1+disc) -> 0.9661835749 | BA34: 26 | BB34: 16327.69997 | BC34: 0.5798778466 | BD34: 21807.0663 | BE34: 0.7951965232
H35: 1.01 | I35: 14 | J35: =MMULT(J34:M34,J$4:M$7) -> 0.4111350378 | K35: 0.1308529981 | L35: 0.4403041561 | M35: 0.01770780804 | N35: 0.9661835749 | O35: 24.43754964 | P35: 15.4785255 | Q35: 168.8881825 | R35: 0 | S35: 0.02711107858 | T35: 0.006879791284 | U35: -0.004856817181 | V35: 0 | AA35: 1.01 | AB35: 14 | AC35: =MMULT(AC34:AF34,AC$4:AF$7) ->  | AG35: 0.9661835749 | BA35: 27 | BB35: 13329.07878 | BC35: 1.302404214 | BD35: 21431.90367 | BE35: 0.8700032934
A36: UTILITIES | B36: Value per month (converted) | C36: Value per year (reference) | H36: 1.02 | I36: 15 | J36: =MMULT(J35:M35,J$4:M$7) -> 0.3993944475 | K36: 0.1263749856 | L36: 0.4548285323 | M36: 0.0194020346 | N36: 0.9661835749 | O36: 23.73969801 | P36: 14.94882399 | Q36: 174.4593211 | R36: 0 | S36: 0.02633688024 | T36: 0.006644353106 | U36: -0.005017029704 | V36: 0 | AA36: 1.02 | AB36: 15 | AC36: =MMULT(AC35:AF35,AC$4:AF$7) ->  | AG36: 0.9661835749 | BA36: 28 | BB36: 18430.29838 | BC36: 0.4603230188 | BD36: 21552.06583 | BE36: 0.9754053916
A37: SILENT | B37: =C37/12 -> 0.06825 | C37: =Parameters!D15 -> 0.819 | H37: 1.03 | I37: 16 | J37: =MMULT(J36:M36,J$4:M$7) -> 0.3878320418 | K37: 0.1222551836 | L37: 0.4687710954 | M37: 0.02114167924 | N37: 0.9661835749 | O37: 23.05243753 | P37: 14.46149499 | Q37: 179.8072928 | R37: 0 | S37: 0.02557443174 | T37: 0.00642774838 | U37: -0.005170824482 | V37: 0 | AA37: 1.03 | AB37: 16 | AC37: =MMULT(AC36:AF36,AC$4:AF$7) ->  | AG37: 0.9661835749 | BA37: 29 | BB37: 16098.15696 | BC37: 1.443980629 | BD37: 21040.13574 | BE37: 1.518473114
A38: ACTIVE | B38: =C38/12 -> 0.05441666667 | C38: =Parameters!D16 -> 0.653 | H38: 1.04 | I38: 17 | J38: =MMULT(J37:M37,J$4:M$7) -> 0.3765066214 | K38: 0.1183979712 | L38: 0.4821702719 | M38: 0.0229251355 | N38: 0.9661835749 | O38: 22.37926327 | P38: 14.00522757 | Q38: 184.9468368 | R38: 0 | S38: 0.02482761054 | T38: 0.006224949695 | U38: -0.005318625383 | V38: 0 | AA38: 1.04 | AB38: 17 | AC38: =MMULT(AC37:AF37,AC$4:AF$7) ->  | AG38: 0.9661835749 | BA38: 30 | BB38: 17588.8901 | BC38: 0.3937714109 | BD38: 21138.09921 | BE38: 0.5887108216
A39: COMPL | B39: -0.01141666667 | C39: =Parameters!D17 -> -0.137 | H39: 1.05 | I39: 18 | J39: =MMULT(J38:M38,J$4:M$7) -> 0.3654510796 | K39: 0.1147426128 | L39: 0.4950554902 | M39: 0.02475081738 | N39: 0.9661835749 | O39: 21.72213039 | P39: 13.57283734 | Q39: 189.8892409 | R39: 0 | S39: 0.02409858568 | T39: 0.006032763783 | U39: -0.005460757017 | V39: 0 | AA39: 1.05 | AB39: 18 | AC39: =MMULT(AC38:AF38,AC$4:AF$7) ->  | AG39: 0.9661835749 | BA39: 31 | BB39: 15053.0048 | BC39: 0.3974357306 | BD39: 21194.00928 | BE39: 0.1056630129
A40: DEAD | B40: 0 | C40: 0 | H40: 1.06 | I40: 19 | J40: =MMULT(J39:M39,J$4:M$7) -> 0.354682282 | K40: 0.1112501389 | L40: 0.5074504098 | M40: 0.02661716936 | N40: 0.9661835749 | O40: 21.08204137 | P40: 13.15971462 | Q40: 194.6435804 | R40: 0 | S40: 0.02338846932 | T40: 0.005849141761 | U40: -0.005597480365 | V40: 0 | AA40: 1.06 | AB40: 19 | AC40: =MMULT(AC39:AF39,AC$4:AF$7) ->  | AG40: 0.9661835749 | BA40: 32 | BB40: 17201.49166 | BC40: 0.6724937119 | BD40: 21230.82758 | BE40: 1.028476162
H41: 1.07 | I41: 20 | J41: =MMULT(J40:M40,J$4:M$7) -> 0.3442072171 | K41: 0.1078951722 | L41: 0.5193749384 | M41: 0.02852267223 | N41: 0.9661835749 | O41: 20.45941159 | P41: 12.76285755 | Q41: 199.2174913 | R41: 0 | S41: 0.02269772229 | T41: 0.005672749394 | U41: -0.005729015021 | V41: 0 | AA41: 1.07 | AB41: 20 | AC41: =MMULT(AC40:AF40,AC$4:AF$7) ->  | AG41: 0.9661835749 | BA41: 33 | BB41: 17341.26755 | BC41: -0.8749177197 | BD41: 21460.01611 | BE41: -0.2600227128
A42: Other parameters | B42: Values | H42: 1.08 | I42: 21 | J42: =MMULT(J41:M41,J$4:M$7) -> 0.3340268251 | K42: 0.104660836 | L42: 0.5308464928 | M42: 0.03046584611 | N42: 0.9661835749 | O42: 19.85429693 | P42: 12.38026979 | Q42: 203.6176541 | R42: 0 | S42: 0.02202640658 | T42: 0.005502699347 | U42: -0.005855553101 | V42: 0 | AA42: 1.08 | AB42: 21 | AC42: =MMULT(AC41:AF41,AC$4:AF$7) ->  | AG42: 0.9661835749 | BA42: 34 | BB42: 14188.92686 | BC42: 0.3798448592 | BD42: 21840.293 | BE42: -0.5678198939
A43: discount rate | B43: 0.035 | H43: 1.09 | I43: 22 | J43: =MMULT(J42:M42,J$4:M$7) -> 0.3241383794 | K43: 0.1015355797 | L43: 0.541880789 | M43: 0.03244525189 | N43: 0.9661835749 | O43: 19.26653535 | P43: 12.01058503 | Q43: 207.8500971 | R43: 0 | S43: 0.02137434241 | T43: 0.005338384343 | U43: -0.005977267963 | V43: 0 | AA43: 1.09 | AB43: 22 | AC43: =MMULT(AC42:AF42,AC$4:AF$7) ->  | AG43: 0.9661835749 | BA43: 35 | BB43: 15237.77278 | BC43: 1.132444674 | BD43: 21441.26642 | BE43: 1.078337096
A44: value per QALY | B44: 30000 | H44: 1.10 | I44: 23 | J44: =MMULT(J43:M43,J$4:M$7) -> 0.3145369678 | K44: 0.09851120196 | L44: 0.5524923386 | M44: 0.03445949163 | N44: 0.9661835749 | O44: 18.69583484 | P44: 11.65283313 | Q44: 211.9203864 | R44: 0 | S44: 0.02074120585 | T44: 0.005179373179 | U44: -0.006094319677 | V44: 0 | AA44: 1.10 | AB44: 23 | AC44: =MMULT(AC43:AF43,AC$4:AF$7) ->  | AG44: 0.9661835749 | BA44: 36 | BB44: 12238.75643 | BC44: 0.9565551473 | BD44: 21133.04128 | BE44: 0.1166622267
A45: default value per QALY | B45: 30000 | H45: 1.11 | I45: 24 | J45: =MMULT(J44:M44,J$4:M$7) -> 0.3052164117 | K45: 0.09558161738 | L45: 0.5626947626 | M45: 0.0365072083 | N45: 0.9661835749 | O45: 18.14182818 | P45: 11.30629427 | Q45: 215.8337468 | R45: 0 | S45: 0.02012658947 | T45: 0.005025345906 | U45: -0.006206858493 | V45: 0 | AA45: 1.11 | AB45: 24 | AC45: =MMULT(AC44:AF44,AC$4:AF$7) ->  | AG45: 0.9661835749 | BA45: 37 | BB45: 12654.01851 | BC45: 1.304440368 | BD45: 21133.11026 | BE45: 0.5114868273
H46: 2.00 | I46: 25 | J46: =MMULT(J45:M45,J$4:M$7) -> 0.2961698361 | K46: 0.09274208764 | L46: 0.5725009911 | M46: 0.03858708526 | N46: 0.9335107004 | O46: 17.00879874 | P46: 10.59942796 | Q46: 212.1692153 | R46: 0 | S46: 0.01886960378 | T46: 0.004711162705 | U46: -0.006101475396 | V46: 0 | AA46: 2.00 | AB46: 25 | AC46: =MMULT(AC45:AF45,AC$4:AF$7) ->  | AG46: 0.9335107004 | BA46: 38 | BB46: 15693.89037 | BC46: 1.020447607 | BD46: 21810.52756 | BE46: 0.6575925964
H47: 2.01 | I47: 26 | J47: =MMULT(J46:M46,J$4:M$7) -> 0.2873900218 | K47: 0.08998874169 | L47: 0.5819233911 | M47: 0.04069784538 | N47: 0.9335107004 | O47: 16.50458097 | P47: 10.28474999 | Q47: 215.6611625 | R47: 0 | S47: 0.01831022333 | T47: 0.004571296749 | U47: -0.006201895384 | V47: 0 | AA47: 2.01 | AB47: 26 | AC47: =MMULT(AC46:AF46,AC$4:AF$7) ->  | AG47: 0.9335107004 | BA47: 39 | BB47: 15536.42374 | BC47: 1.046872406 | BD47: 21441.28947 | BE47: 0.7317503666
H48: 2.02 | I48: 27 | J48: =MMULT(J47:M47,J$4:M$7) -> 0.2788696226 | K48: 0.08731827601 | L48: 0.5909738513 | M48: 0.04283825013 | N48: 0.9335107004 | O48: 16.0152612 | P48: 9.979544342 | Q48: 219.0152686 | R48: 0 | S48: 0.01776737076 | T48: 0.00443564099 | U48: -0.006298351391 | V48: 0 | AA48: 2.02 | AB48: 27 | AC48: =MMULT(AC47:AF47,AC$4:AF$7) ->  | AG48: 0.9335107004 | BA48: 40 | BB48: 13743.5244 | BC48: 1.15237731 | BD48: 20470.97212 | BE48: 0.7841481314
H49: 2.03 | I49: 28 | J49: =MMULT(J48:M48,J$4:M$7) -> 0.2706012973 | K49: 0.08472776704 | L49: 0.599663837 | M49: 0.04500709861 | N49: 0.9335107004 | O49: 15.54041784 | P49: 9.683476894 | Q49: 222.2357826 | R49: 0 | S49: 0.01724057835 | T49: 0.004304046915 | U49: -0.006390965614 | V49: 0 | AA49: 2.03 | AB49: 28 | AC49: =MMULT(AC48:AF48,AC$4:AF$7) ->  | AG49: 0.9335107004 | BA49: 41 | BB49: 15048.11554 | BC49: 0.8657305298 | BD49: 21028.54551 | BE49: 0.6361891429
H50: 2.04 | I50: 29 | J50: =MMULT(J49:M49,J$4:M$7) -> 0.2625777901 | K50: 0.08221455359 | L50: 0.6080044299 | M50: 0.04720322649 | N50: 0.9335107004 | O50: 15.07963418 | P50: 9.396243496 | Q50: 225.3268113 | R50: 0 | S50: 0.01672938381 | T50: 0.004176379339 | U50: -0.006479856153 | V50: 0 | AA50: 2.04 | AB50: 29 | AC50: =MMULT(AC49:AF49,AC$4:AF$7) ->  | AG50: 0.9335107004 | BA50: 42 | BB50: 15967.87887 | BC50: 1.496322171 | BD50: 20789.86168 | BE50: 1.324972151
H51: 2.05 | I51: 30 | J51: =MMULT(J50:M50,J$4:M$7) -> 0.2547919776 | K51: 0.07977616282 | L51: 0.6160063546 | M51: 0.04942550497 | N51: 0.9335107004 | O51: 14.63250115 | P51: 9.11756153 | Q51: 228.2923295 | R51: 0 | S51: 0.01623333331 | T51: 0.004052512647 | U51: -0.00656513731 | V51: 0 | AA51: 2.05 | AB51: 30 | AC51: =MMULT(AC50:AF50,AC$4:AF$7) ->  | AG51: 0.9335107004 | BA51: 43 | BB51: 12935.77676 | BC51: 2.094172605 | BD51: 21703.0225 | BE51: 1.319993633
H52: 2.06 | I52: 31 | J52: =MMULT(J51:M51,J$4:M$7) -> 0.2472368966 | K52: 0.0774102634 | L52: 0.6236800002 | M52: 0.05167283982 | N52: 0.9335107004 | O52: 14.19861884 | P52: 8.84716455 | Q52: 231.1361872 | R52: 0 | S52: 0.01575198319 | T52: 0.003932328409 | U52: -0.006646919806 | V52: 0 | AA52: 2.06 | AB52: 31 | AC52: =MMULT(AC51:AF51,AC$4:AF$7) ->  | AG52: 0.9335107004 | BA52: 44 | BB52: 15080.08994 | BC52: 1.182472952 | BD52: 20271.06736 | BE52: 1.318007342
H53: 2.07 | I53: 32 | J53: =MMULT(J52:M52,J$4:M$7) -> 0.2399057579 | K53: 0.0751146356 | L53: 0.6310354362 | M53: 0.0539441703 | N53: 0.9335107004 | O53: 13.77759736 | P53: 8.584798864 | Q53: 233.8621163 | R53: 0 | S53: 0.01528490091 | T53: 0.003815713867 | U53: -0.006725310957 | V53: 0 | AA53: 2.07 | AB53: 32 | AC53: =MMULT(AC52:AF52,AC$4:AF$7) ->  | AG53: 0.9335107004 | BA53: 45 | BB53: 17973.86756 | BC53: -0.04980831968 | BD53: 21993.78134 | BE53: 0.5358592255
H54: 2.08 | I54: 33 | J54: =MMULT(J53:M53,J$4:M$7) -> 0.2327919541 | K54: 0.07288715195 | L54: 0.6380824257 | M54: 0.05623846822 | N54: 0.9335107004 | O54: =c_sil_A*J54*N54 -> 13.36905726 | P54: =c_act_A*K54*N54 -> 8.330221324 | Q54: =c_compl_A*L54*N54 -> 236.4737349 | R54: =c_dead_A*M54*N54 -> 0 | S54: =u_sil*J54*N54 -> 0.01483166549 | T54: =u_act*K54*N54 -> 0.003702560948 | U54: =u_compl*L54*N54 -> -0.006800414815 | V54: =u_dead*M54*N54 -> 0 | AA54: 2.08 | AB54: 33 | AC54: =MMULT(AC53:AF53,AC$4:AF$7) ->  | AG54: 0.9335107004 | AH54: =c_sil_B*AC54*AG54 ->  | AI54: =c_act_B*AD54*AG54 ->  | AJ54: =c_compl_B*AE54*AG54 ->  | AK54: =c_dead_B*AF54*AG54 ->  | AL54: =u_sil*AC54*AG54 ->  | AM54: =u_act*AD54*AG54 ->  | AN54: =u_compl*AE54*AG54 ->  | AO54: =u_dead*AF54*AG54 ->  | BA54: 46 | BB54: 16835.19355 | BC54: 0.5855682889 | BD54: 20874.82299 | BE54: 0.9847349179
H55: 2.09 | I55: 34 | J55: =MMULT(J54:M54,J$4:M$7) -> 0.2258890611 | K55: 0.07072576456 | L55: 0.6448304373 | M55: 0.05855473698 | N55: 0.9335107004 | O55: 12.97262959 | P55: 8.08319788 | Q55: 238.9745521 | R55: 0 | S55: 0.01439186765 | T55: 0.003592765623 | U55: -0.006872332292 | V55: 0 | AA55: 2.09 | AB55: 34 | AC55: =MMULT(AC54:AF54,AC$4:AF$7) ->  | AG55: 0.9335107004 | BA55: 47 | BB55: 17508.83683 | BC55: 1.201791817 | BD55: 21365.677 | BE55: 1.373157462
H56: 2.10 | I56: 35 | J56: =MMULT(J55:M55,J$4:M$7) -> 0.2191908375 | K56: 0.06862849652 | L56: 0.6512886553 | M56: 0.06089201062 | N56: 0.9335107004 | O56: 12.58795592 | P56: 7.843502591 | Q56: 241.3679716 | R56: 0 | S56: 0.01396510972 | T56: 0.003486227468 | U56: -0.00694116127 | V56: 0 | AA56: 2.10 | AB56: 35 | AC56: =MMULT(AC55:AF55,AC$4:AF$7) ->  | AG56: 0.9335107004 | BA56: 48 | BB56: 13957.35574 | BC56: 1.900421393 | BD56: 21282.79401 | BE56: 1.498858739
H57: 2.11 | I57: 36 | J57: =MMULT(J56:M56,J$4:M$7) -> 0.2126912224 | K57: 0.06659343595 | L57: 0.6574659888 | M57: 0.06324935291 | N57: 0.9335107004 | O57: 12.21468818 | P57: 7.61091695 | Q57: 243.6572951 | R57: 0 | S57: 0.01355100556 | T57: 0.00338284936 | U57: -0.007006996699 | V57: 0 | AA57: 2.11 | AB57: 36 | AC57: =MMULT(AC56:AF56,AC$4:AF$7) ->  | AG57: 0.9335107004 | BA57: 49 | BB57: 15586.2605 | BC57: 0.9511771576 | BD57: 22381.9578 | BE57: 0.8702681358
H58: 3.00 | I58: 37 | J58: =MMULT(J57:M57,J$4:M$7) -> 0.2063843312 | K58: 0.06461873163 | L58: 0.6633710807 | M58: 0.06562585649 | N58: 0.9019427057 | O58: 11.45167963 | P58: 7.135487326 | Q58: 237.5321022 | R58: 0 | S58: 0.01270452197 | T58: 0.003171533587 | U58: -0.006830850909 | V58: 0 | AA58: 3.00 | AB58: 37 | AC58: =MMULT(AC57:AF57,AC$4:AF$7) ->  | AG58: 0.9019427057 | BA58: 50 | BB58: 17434.4901 | BC58: 0.04332776904 | BD58: 21265.03849 | BE58: 0.6645003103
H59: 3.01 | I59: 38 | J59: =MMULT(J58:M58,J$4:M$7) -> 0.2002644523 | K59: 0.06270258973 | L59: 0.6690123159 | M59: 0.06802064198 | N59: 0.9019427057 | O59: 11.11210496 | P59: 6.923898428 | Q59: 239.5520493 | R59: 0 | S59: 0.01232779698 | T59: 0.003077487972 | U59: -0.00688893972 | V59: 0 | AA59: 3.01 | AB59: 38 | AC59: =MMULT(AC58:AF58,AC$4:AF$7) ->  | AG59: 0.9019427057 | BA59: 51 | BB59: 15203.32701 | BC59: 1.142597703 | BD59: 21201.63124 | BE59: 1.213657231
H60: 3.02 | I60: 39 | J60: =MMULT(J59:M59,J$4:M$7) -> 0.1943260423 | K60: 0.06084327116 | L60: 0.6743978294 | M60: 0.07043285715 | N60: 0.9019427057 | O60: 10.78259947 | P60: 6.718584213 | Q60: 241.4804305 | R60: 0 | S60: 0.01196224277 | T60: 0.002986231286 | U60: -0.006944395317 | V60: 0 | AA60: 3.02 | AB60: 39 | AC60: =MMULT(AC59:AF59,AC$4:AF$7) ->  | AG60: 0.9019427057 | BA60: 52 | BB60: 15193.39758 | BC60: 1.419438599 | BD60: 21230.42569 | BE60: 1.322817107
H61: 3.03 | I61: 40 | J61: =MMULT(J60:M60,J$4:M$7) -> 0.1885637211 | K61: 0.05903908934 | L61: 0.6795355134 | M61: 0.07286167617 | N61: 0.9019427057 | O61: 10.46286466 | P61: 6.519358444 | Q61: 243.3200719 | R61: 0 | S61: 0.01160752817 | T61: 0.002897680751 | U61: -0.00699729897 | V61: 0 | AA61: 3.03 | AB61: 40 | AC61: =MMULT(AC60:AF60,AC$4:AF$7) ->  | AG61: 0.9019427057 | BA61: 53 | BB61: 16804.7977 | BC61: 1.470702632 | BD61: 21042.16618 | BE61: 1.55610746
H62: 3.04 | I62: 41 | J62: =MMULT(J61:M61,J$4:M$7) -> 0.182972268 | K62: 0.05728840832 | L62: 0.6844330249 | M62: 0.07530629872 | N62: 0.9019427057 | O62: 10.15261083 | P62: 6.326040472 | Q62: 245.0737151 | R62: 0 | S62: 0.0112633318 | T62: 0.002811756074 | U62: -0.007047729524 | V62: 0 | AA62: 3.04 | AB62: 41 | AC62: =MMULT(AC61:AF61,AC$4:AF$7) ->  | AG62: 0.9019427057 | BA62: 54 | BB62: 16277.48993 | BC62: 1.35561836 | BD62: 20974.43754 | BE62: 1.362630964
H63: 3.05 | I63: 42 | J63: =MMULT(J62:M62,J$4:M$7) -> 0.1775466168 | K63: 0.05558964104 | L63: 0.6890977928 | M63: 0.07776594933 | N63: 0.9019427057 | O63: 9.85155687 | P63: 6.138455044 | Q63: 246.7440202 | R63: 0 | S63: 0.01092934179 | T63: 0.00272837936 | U63: -0.007095763475 | V63: 0 | AA63: 3.05 | AB63: 42 | AC63: =MMULT(AC62:AF62,AC$4:AF$7) ->  | AG63: 0.9019427057 | BA63: 55 | BB63: 13232.29134 | BC63: 1.531001863 | BD63: 21768.10766 | BE63: 0.8740781033
H64: 3.06 | I64: 43 | J64: =MMULT(J63:M63,J$4:M$7) -> 0.1722818513 | K64: 0.05394124771 | L64: 0.6935370244 | M64: 0.08023987657 | N64: 0.9019427057 | O64: 9.55943 | P64: 5.956432132 | Q64: 248.333568 | R64: 0 | S64: 0.01060525551 | T64: 0.002647475036 | U64: -0.007141475039 | V64: 0 | AA64: 3.06 | AB64: 43 | AC64: =MMULT(AC63:AF63,AC$4:AF$7) ->  | AG64: 0.9019427057 | BA64: 56 | BB64: 18629.26192 | BC64: 0.6850662096 | BD64: 21650.12423 | BE64: 1.02483358
H65: 3.07 | I65: 44 | J65: =MMULT(J64:M64,J$4:M$7) -> 0.1671732008 | K65: 0.05234173437 | L65: 0.6977577124 | M65: 0.08272735239 | N65: 0.9019427057 | O65: 9.275965514 | P65: 5.779806765 | Q65: 249.8448622 | R65: 0 | S65: 0.0102907793 | T65: 0.002568969777 | U65: -0.007184936219 | V65: 0 | AA65: 3.07 | AB65: 44 | AC65: =MMULT(AC64:AF64,AC$4:AF$7) ->  | AG65: 0.9019427057 | BA65: 57 | BB65: 15250.35576 | BC65: 1.201379098 | BD65: 19823.5308 | BE65: 1.268165823
H66: 3.08 | I66: 45 | J66: =MMULT(J65:M65,J$4:M$7) -> 0.1622160363 | K66: 0.05078965143 | L66: 0.7017666409 | M66: 0.08522767136 | N66: =N54/(1+disc) -> 0.9019427057 | O66: 9.000906551 | P66: 5.608418874 | Q66: 251.2803321 | R66: 0 | S66: 0.009985628198 | T66: 0.002492792436 | U66: -0.007226216874 | V66: 0 | AA66: 3.08 | AB66: 45 | AC66: =MMULT(AC65:AF65,AC$4:AF$7) ->  | AG66: =AG54/(1+disc) -> 0.9019427057 | BA66: 58 | BB66: 14616.8161 | BC66: 0.1279747199 | BD66: 21050.895 | BE66: 0.03169802705
H67: 3.09 | I67: 46 | J67: =MMULT(J66:M66,J$4:M$7) -> 0.1574058658 | K67: 0.04928359236 | L67: 0.7055703918 | M67: 0.08774015005 | N67: 0.9019427057 | O67: 8.73400387 | P67: 5.442113143 | Q67: 252.6423344 | R67: 0 | S67: 0.009689525697 | T67: 0.002418873979 | U67: -0.007265384779 | V67: 0 | AA67: 3.09 | AB67: 46 | AC67: =MMULT(AC66:AF66,AC$4:AF$7) ->  | AG67: 0.9019427057 | BA67: 59 | BB67: 15543.95638 | BC67: 0.344081495 | BD67: 21083.36499 | BE67: 0.4942773619
H68: 3.10 | I68: 47 | J68: =MMULT(J67:M67,J$4:M$7) -> 0.1527383306 | K68: 0.04782219235 | L68: 0.7091753507 | M68: 0.09026412634 | N68: 0.9019427057 | O68: 8.475015614 | P68: 5.280738863 | Q68: 253.9331557 | R68: 0 | S68: 0.00940220348 | T68: 0.002347147421 | U68: -0.007302505687 | V68: 0 | AA68: 3.10 | AB68: 47 | AC68: =MMULT(AC67:AF67,AC$4:AF$7) ->  | AG68: 0.9019427057 | BA68: 60 | BB68: 15395.71716 | BC68: 0.9722034812 | BD68: 20938.10718 | BE68: 0.9812916366
H69: 3.11 | I69: 48 | J69: =MMULT(J68:M68,J$4:M$7) -> 0.1482092011 | K69: 0.04640412711 | L69: 0.7125877129 | M69: 0.09279895882 | N69: 0.9019427057 | O69: 8.223707101 | P69: 5.124149801 | Q69: 255.1550141 | R69: 0 | S69: 0.009123401187 | T69: 0.002277547764 | U69: -0.007337643392 | V69: 0 | AA69: 3.11 | AB69: 48 | AC69: =MMULT(AC68:AF68,AC$4:AF$7) ->  | AG69: 0.9019427057 | BA69: 61 | BB69: 14560.55294 | BC69: 0.5039352974 | BD69: 21630.70413 | BE69: 0.3635766063
H70: 4.00 | I70: 49 | J70: =MMULT(J69:M69,J$4:M$7) -> 0.1438143733 | K70: 0.0450281116 | L70: 0.715813489 | M70: 0.09534402612 | N70: 0.8714422277 | O70: 7.710000583 | P70: 4.804061891 | Q70: 247.642572 | R70: 0 | S70: 0.008553493895 | T70: 0.002135277235 | U70: -0.007121603658 | V70: 0 | AA70: 4.00 | AB70: 49 | AC70: =MMULT(AC69:AF69,AC$4:AF$7) ->  | AG70: 0.8714422277 | BA70: 62 | BB70: 15828.53219 | BC70: 0.6586805308 | BD70: 21443.65314 | BE70: 0.9529859844
H71: 4.01 | I71: 50 | J71: =MMULT(J70:M70,J$4:M$7) -> 0.1395498648 | K71: 0.04369289892 | L71: 0.71885851 | M71: 0.09789872636 | N71: 0.8714422277 | O71: 7.481376957 | P71: 4.661607675 | Q71: 248.6960263 | R71: 0 | S71: 0.008299858272 | T71: 0.002071960139 | U71: -0.007151898467 | V71: 0 | AA71: 4.01 | AB71: 50 | AC71: =MMULT(AC70:AF70,AC$4:AF$7) ->  | AG71: 0.8714422277 | BA71: 63 | BB71: 15181.21938 | BC71: 0.7254903008 | BD71: 20683.62548 | BE71: 0.7476665447
H72: 4.02 | I72: 51 | J72: =MMULT(J71:M71,J$4:M$7) -> 0.1354118111 | K72: 0.04239727914 | L72: 0.7217284332 | M72: 0.1004624766 | N72: 0.8714422277 | O72: 7.259532676 | P72: 4.523377636 | Q72: 249.6889039 | R72: 0 | S72: 0.008053743673 | T72: 0.002010520578 | U72: -0.007180451234 | V72: 0 | AA72: 4.02 | AB72: 51 | AC72: =MMULT(AC71:AF71,AC$4:AF$7) ->  | AG72: 0.8714422277 | BA72: 64 | BB72: 16484.01574 | BC72: 0.5625319856 | BD72: 21715.96941 | BE72: 0.3566743196
H73: 4.03 | I73: 52 | J73: =MMULT(J72:M72,J$4:M$7) -> 0.1313964626 | K73: 0.04114007821 | L73: 0.7244287472 | M73: 0.103034712 | N73: 0.8714422277 | O73: 7.044266714 | P73: 4.389246516 | Q73: 250.6231036 | R73: 0 | S73: 0.007814927078 | T73: 0.001950902876 | U73: -0.007207316565 | V73: 0 | AA73: 4.03 | AB73: 52 | AC73: =MMULT(AC72:AF72,AC$4:AF$7) ->  | AG73: 0.8714422277 | BA73: 65 | BB73: 16458.29002 | BC73: 0.513042169 | BD73: 21732.7527 | BE73: 0.3537251789
H74: 4.04 | I74: 53 | J74: =MMULT(J73:M73,J$4:M$7) -> 0.1275001806 | K74: 0.0399201569 | L74: 0.7269647766 | M74: 0.1056148859 | N74: 0.8714422277 | O74: 6.835384004 | P74: 4.259092768 | Q74: 251.5004674 | R74: 0 | S74: 0.007583192078 | T74: 0.001893053011 | U74: -0.007232547433 | V74: 0 | AA74: 4.04 | AB74: 53 | AC74: =MMULT(AC73:AF73,AC$4:AF$7) ->  | AG74: 0.8714422277 | BA74: 66 | BB74: 11589.05499 | BC74: 2.311058597 | BD74: 21144.52179 | BE74: 1.491109896
H75: 4.05 | I75: 54 | J75: =MMULT(J74:M74,J$4:M$7) -> 0.1237194346 | K75: 0.03873640976 | L75: 0.7293416871 | M75: 0.1082024685 | N75: 0.8714422277 | O75: 6.632695266 | P75: 4.132798453 | Q75: 252.3227825 | R75: 0 | S75: 0.007358328686 | T75: 0.00183691856 | U75: -0.007256195234 | V75: 0 | AA75: 4.05 | AB75: 54 | AC75: =MMULT(AC74:AF74,AC$4:AF$7) ->  | AG75: 0.8714422277 | BA75: =1+BA74 -> 67 | BB75: 15715.04632 | BC75: 1.876961615 | BD75: 21569.05155 | BE75: 1.907068763
H76: 4.06 | I76: 55 | J76: =MMULT(J75:M75,J$4:M$7) -> 0.1200507986 | K76: 0.03758776412 | L76: 0.7315644903 | M76: 0.110796947 | N76: 0.8714422277 | O76: 6.43601683 | P76: 4.010249126 | Q76: 253.0917826 | R76: 0 | S76: 0.007140133139 | T76: 0.001782448656 | U76: -0.007278309826 | V76: 0 | AA76: 4.06 | AB76: 55 | AC76: =MMULT(AC75:AF75,AC$4:AF$7) ->  | AG76: 0.8714422277 | BA76: 68 | BB76: 16284.74203 | BC76: 1.470643761 | BD76: 22071.15103 | BE76: 1.445022425
H77: 4.07 | I77: 56 | J77: =MMULT(J76:M76,J$4:M$7) -> 0.1164909481 | K77: 0.03647317911 | L77: 0.7336380482 | M77: 0.1133978246 | N77: 0.8714422277 | O77: 6.245170474 | P77: 3.891333739 | Q77: 253.8091499 | R77: 0 | S77: 0.006928407715 | T77: 0.001729593942 | U77: -0.007298939581 | V77: 0 | AA77: 4.07 | AB77: 56 | AC77: =MMULT(AC76:AF76,AC$4:AF$7) ->  | AG77: 0.8714422277 | BA77: 69 | BB77: 13712.38847 | BC77: 1.048122681 | BD77: 19829.29196 | BE77: 0.7864477537
H78: 4.08 | I78: 57 | J78: =MMULT(J77:M77,J$4:M$7) -> 0.1130366575 | K78: 0.03539164475 | L78: 0.7355670773 | M78: 0.1160046205 | N78: 0.8714422277 | O78: 6.05998326 | P78: 3.775944533 | Q78: 254.4765162 | R78: 0 | S78: 0.006722960557 | T78: 0.001678306521 | U78: -0.007318131426 | V78: 0 | AA78: 4.08 | AB78: 57 | AC78: =MMULT(AC77:AF77,AC$4:AF$7) ->  | AG78: 0.8714422277 | BA78: 70 | BB78: 17851.94943 | BC78: 0.4785038376 | BD78: 21138.43692 | BE78: 0.8345611607
H79: 4.09 | I79: 58 | J79: =MMULT(J78:M78,J$4:M$7) -> 0.1096847964 | K79: 0.03434218099 | L79: 0.7373561537 | M79: 0.118616869 | N79: 0.8714422277 | O79: 5.880287377 | P79: 3.663976949 | Q79: 255.0954644 | R79: 0 | S79: 0.006523605496 | T79: 0.00162853992 | U79: -0.007335930884 | V79: 0 | AA79: 4.09 | AB79: 58 | AC79: =MMULT(AC78:AF78,AC$4:AF$7) ->  | AG79: 0.8714422277 | BA79: 71 | BB79: 15580.57803 | BC79: 1.432225379 | BD79: 21440.09832 | BE79: 1.487715944
H80: 4.10 | I80: 59 | J80: =MMULT(J79:M79,J$4:M$7) -> 0.1064323276 | K80: 0.03332383684 | L80: 0.7390097163 | M80: 0.1212341192 | N80: 0.8714422277 | O80: 5.705919993 | P80: 3.555329525 | Q80: 255.6675303 | R80: 0 | S80: 0.006330161885 | T80: 0.001580249041 | U80: -0.007352382122 | V80: 0 | AA80: 4.10 | AB80: 59 | AC80: =MMULT(AC79:AF79,AC$4:AF$7) ->  | AG80: 0.8714422277 | BA80: 72 | BB80: 13565.60757 | BC80: 1.702306691 | BD80: 21344.92281 | BE80: 0.8346906353
H81: 4.11 | I81: 60 | J81: =MMULT(J80:M80,J$4:M$7) -> 0.1032763039 | K81: 0.03233568951 | L81: 0.7405320718 | M81: 0.1238559348 | N81: 0.8714422277 | O81: 5.536723102 | P81: 3.449903809 | Q81: 256.1942038 | R81: 0 | S81: 0.006142454431 | T81: 0.001533390125 | U81: -0.007367527984 | V81: 0 | AA81: 4.11 | AB81: 60 | AC81: =MMULT(AC80:AF80,AC$4:AF$7) ->  | AG81: 0.8714422277 | BA81: 73 | BB81: 20077.4824 | BC81: -0.9501546506 | BD81: 21716.59632 | BE81: 0.05061783606
H82: 5.00 | I82: 61 | J82: =MMULT(J81:M81,J$4:M$7) -> 0.1002138653 | K82: 0.03137684358 | L82: 0.7419273979 | M82: 0.1264818933 | N82: 0.8419731669 | O82: 5.190863173 | P82: 3.234400258 | Q82: 247.9970341 | R82: 0 | S82: 0.005758756562 | T82: 0.001437604551 | U82: -0.007131797135 | V82: 0 | AA82: 5.00 | AB82: 61 | AC82: =MMULT(AC81:AF81,AC$4:AF$7) ->  | AG82: 0.8419731669 | BA82: 74 | BB82: 15696.92231 | BC82: 0.754043837 | BD82: 21113.08444 | BE82: 0.8151882737
BA83: 75 | BB83: 14554.98088 | BC83: 1.75220509 | BD83: 21872.83449 | BE83: 1.424387714
O84: SILENT | P84: ACTIVE | Q84: COMPL | R84: DEAD | S84: SILENT | T84: ACTIVE | U84: COMPL | V84: DEAD | AH84: SILENT | AI84: ACTIVE | AJ84: COMPL | AK84: DEAD | AL84: SILENT | AM84: ACTIVE | AN84: COMPL | AO84: DEAD | BA84: 76 | BB84: 12289.72769 | BC84: 1.293760265 | BD84: 20673.00375 | BE84: 0.7730444065
F85: HALF CYCLE CORRECTION | H85: TOTALS | J85: =0.5*J22+SUM(J23:J81)+0.5*J82 -> 15.62283936 | K85: =0.5*K22+SUM(K23:K81)+0.5*K82 -> 7.043580501 | L85: =0.5*L22+SUM(L23:L81)+0.5*L82 -> 34.00522118 | M85: =0.5*M22+SUM(M23:M81)+0.5*M82 -> 3.328358959 | O85: =0.5*O22+SUM(O23:O81)+0.5*O82 -> 914.8507915 | P85: 833.4803752 | Q85: 12431.49621 | R85: 0 | S85: 1.014937752 | T85: 0.3704597715 | U85: -0.3574998765 | V85: 0 | AA85: TOTALS | AC85: =0.5*AC22+SUM(AC23:AC81)+0.5*AC82 ->  | AD85: =0.5*AD22+SUM(AD23:AD81)+0.5*AD82 ->  | AE85: =0.5*AE22+SUM(AE23:AE81)+0.5*AE82 ->  | AF85: =0.5*AF22+SUM(AF23:AF81)+0.5*AF82 ->  | AH85: =0.5*AH22+SUM(AH23:AH81)+0.5*AH82 ->  | BA85: 77 | BB85: 15888.12074 | BC85: 1.356197065 | BD85: 20192.97393 | BE85: 1.064433762
BA86: 78 | BB86: 17290.87999 | BC86: -0.2085361067 | BD86: 20827.72072 | BE86: 0.458611508
Q87: TOTAL COST | R87: =O85+P85+Q85+R85 -> 14179.82738 | U87: TOTAL OUTCOME | V87: =S85+T85+U85+V85 -> 1.027897647 | AJ87: TOTAL COST | AK87: =AH85+AI85+AJ85+AK85 ->  | AN87: TOTAL OUTCOME | AO87: =AL85+AM85+AN85+AO85 ->  | BA87: 79 | BB87: 18161.53814 | BC87: 0.05106665268 | BD87: 21416.40962 | BE87: 0.3795957803
BA88: 80 | BB88: 18238.4104 | BC88: 1.091819582 | BD88: 21318.40182 | BE88: 1.419987186
BA89: 81 | BB89: 10370.8731 | BC89: 2.246765105 | BD89: 21216.38783 | BE89: 1.133497931
BA90: 82 | BB90: 14503.67121 | BC90: 0.9738560176 | BD90: 19811.366 | BE90: 0.9977996924
BA91: 83 | BB91: 15223.1849 | BC91: 0.1223909098 | BD91: 20482.67374 | BE91: 0.3243350695
BA92: 84 | BB92: 13456.14617 | BC92: 1.366166623 | BD92: 21647.72762 | BE92: 1.011735755
BA93: 85 | BB93: 15162.7469 | BC93: 1.25803878 | BD93: 21027.58025 | BE93: 1.159010198
BA94: 86 | BB94: 14237.183 | BC94: 1.514010742 | BD94: 21615.47904 | BE94: 0.9434227532
BA95: 87 | BB95: 14787.32329 | BC95: 0.795107565 | BD95: 21318.31149 | BE95: 0.4945842002
BA96: 88 | BB96: 14970.95337 | BC96: -0.6534920631 | BD96: 20559.76208 | BE96: -0.5879555852
BA97: 89 | BB97: 16918.07695 | BC97: -0.2688434791 | BD97: 21381.91162 | BE97: 0.4173085742
BA98: 90 | BB98: 17145.95825 | BC98: 1.204530075 | BD98: 21173.29846 | BE98: 1.294752154
BA99: 91 | BB99: 17044.85185 | BC99: 1.376390455 | BD99: 21810.54486 | BE99: 1.631007115
BA100: 92 | BB100: 17783.32297 | BC100: 0.5626400836 | BD100: 20968.71902 | BE100: 0.8201628726
BA101: 93 | BB101: 17298.41447 | BC101: 0.6879934164 | BD101: 20836.76444 | BE101: 1.057333123
BA102: 94 | BB102: 13636.65696 | BC102: 0.8842385925 | BD102: 21345.41217 | BE102: 0.6346006715
BA103: 95 | BB103: 14324.9515 | BC103: 0.8519956844 | BD103: 20393.99353 | BE103: 0.5069000823
BA104: 96 | BB104: 16500.69002 | BC104: 0.3942406246 | BD104: 21181.58195 | BE104: 0.6355561855
BA105: 97 | BB105: 17325.04476 | BC105: 0.5039765564 | BD105: 21303.08489 | BE105: 0.6670828098
BA106: 98 | BB106: 15958.39278 | BC106: 1.306577926 | BD106: 20509.09387 | BE106: 1.512368467
BA107: 99 | BB107: 17565.78687 | BC107: 0.3117244469 | BD107: 21543.32365 | BE107: 0.8230682237
BA108: 100 | BB108: 18394.17708 | BC108: 0.4755197418 | BD108: 21347.01778 | BE108: 0.7826912185
BA109: 101 | BB109: 15509.99341 | BC109: 0.8038303376 | BD109: 21409.45984 | BE109: 0.8431547602
BA110: 102 | BB110: 15105.07002 | BC110: 0.6237052285 | BD110: 21383.40224 | BE110: 0.7282241904
BA111: 103 | BB111: 18697.14761 | BC111: -0.4985014124 | BD111: 21456.80524 | BE111: 0.1790848486
BA112: 104 | BB112: 14780.43132 | BC112: 1.083273353 | BD112: 21445.43229 | BE112: 0.7032143239
BA113: 105 | BB113: 15727.61098 | BC113: 0.9028542573 | BD113: 20073.59273 | BE113: 0.7310751041
BA114: 106 | BB114: 14435.83563 | BC114: -0.5311835834 | BD114: 20448.00731 | BE114: -0.3525868621
BA115: 107 | BB115: 14206.44506 | BC115: 1.955601215 | BD115: 22209.54703 | BE115: 0.97681149
BA116: 108 | BB116: 17268.19739 | BC116: 1.075429566 | BD116: 20806.3306 | BE116: 1.244448537
BA117: 109 | BB117: 16439.20474 | BC117: 0.6390009319 | BD117: 21402.93991 | BE117: 0.8047711854
BA118: 110 | BB118: 16754.03491 | BC118: 1.52344508 | BD118: 21669.67737 | BE118: 1.621704198
BA119: 111 | BB119: 16285.94868 | BC119: 0.07672816118 | BD119: 20798.96505 | BE119: 0.2644018527
BA120: 112 | BB120: 18232.30777 | BC120: 0.3432846315 | BD120: 21441.77248 | BE120: 1.004447579
BA121: 113 | BB121: 16760.04021 | BC121: 0.9579795975 | BD121: 21062.02063 | BE121: 1.191182182
BA122: 114 | BB122: 16386.01819 | BC122: 0.7691101546 | BD122: 20691.03953 | BE122: 1.009305831
BA123: 115 | BB123: 17879.13628 | BC123: 0.06637979352 | BD123: 21272.96029 | BE123: 0.5515201128
BA124: 116 | BB124: 13598.60095 | BC124: 1.532097277 | BD124: 20679.10157 | BE124: 1.202091671
BA125: 117 | BB125: 12756.31825 | BC125: 1.312461639 | BD125: 20733.44925 | BE125: 0.7131779843
BA126: 118 | BB126: 14614.50635 | BC126: 0.5760009298 | BD126: 21033.85501 | BE126: 0.6778557779
BA127: 119 | BB127: 13571.61497 | BC127: 1.450068202 | BD127: 21146.39495 | BE127: 0.9247150892
BA128: 120 | BB128: 18740.44439 | BC128: 1.377871345 | BD128: 21816.52892 | BE128: 1.683194014
BA129: 121 | BB129: 16069.76153 | BC129: 0.7743706723 | BD129: 21516.09173 | BE129: 0.7016818713
BA130: 122 | BB130: 16555.25235 | BC130: 0.5149261665 | BD130: 21017.46928 | BE130: 0.8316095598
BA131: 123 | BB131: 14990.07689 | BC131: 0.662962098 | BD131: 21769.74484 | BE131: 0.5720952988
BA132: 124 | BB132: 16593.14506 | BC132: -0.1801209268 | BD132: 21258.18901 | BE132: -0.2550186133
BA133: 125 | BB133: 15808.93075 | BC133: 1.21730802 | BD133: 21776.26037 | BE133: 1.027485781
BA134: 126 | BB134: 16914.58216 | BC134: 0.956299852 | BD134: 21147.59823 | BE134: 1.232004081
BA135: 127 | BB135: 17916.43417 | BC135: 0.5809572555 | BD135: 20985.70034 | BE135: 0.7725992217
BA136: 128 | BB136: 17952.68692 | BC136: 0.4786473957 | BD136: 20575.89602 | BE136: 0.7682030023
BA137: 129 | BB137: 13834.0315 | BC137: 0.9915390742 | BD137: 21488.05881 | BE137: 0.4745582277
BA138: 130 | BB138: 14132.88677 | BC138: 1.089745555 | BD138: 20372.34363 | BE138: 0.8461407196
BA139: =1+BA138 -> 131 | BB139: 16655.63571 | BC139: 0.9212237538 | BD139: 21439.63756 | BE139: 1.259155387
BA140: 132 | BB140: 14573.76651 | BC140: 0.9229745228 | BD140: 20198.22879 | BE140: 0.7801127788
BA141: 133 | BB141: 14997.75969 | BC141: 0.849198988 | BD141: 20189.52559 | BE141: 0.9192481723
BA142: 134 | BB142: 17736.36292 | BC142: -0.1849708591 | BD142: 21026.46403 | BE142: 0.600304494
BA143: 135 | BB143: 17099.379 | BC143: 0.5141379857 | BD143: 21710.01511 | BE143: 0.4210988565
BA144: 136 | BB144: 14160.21857 | BC144: 0.4346811157 | BD144: 21116.61727 | BE144: 0.2770974276
BA145: 137 | BB145: 16185.38028 | BC145: 0.3404467271 | BD145: 21514.35685 | BE145: 0.4947510057
BA146: 138 | BB146: 18314.68452 | BC146: 0.4495836707 | BD146: 21482.39174 | BE146: 0.7961809632
BA147: 139 | BB147: 15671.17363 | BC147: 0.5349953091 | BD147: 21002.41019 | BE147: 0.7353845913
BA148: 140 | BB148: 16420.67469 | BC148: 0.8985330965 | BD148: 21272.65036 | BE148: 1.030993686
BA149: 141 | BB149: 13386.28963 | BC149: 1.180540297 | BD149: 20924.90942 | BE149: 0.6917016958
BA150: 142 | BB150: 16810.23197 | BC150: 0.6847931504 | BD150: 21283.48807 | BE150: 1.064256422
BA151: 143 | BB151: 15390.71443 | BC151: 1.555934383 | BD151: 21691.45159 | BE151: 1.190960636
BA152: 144 | BB152: 16867.08408 | BC152: 0.8628066853 | BD152: 20706.59559 | BE152: 1.15554154
BA153: 145 | BB153: 18018.85634 | BC153: 0.7970090894 | BD153: 21279.64215 | BE153: 1.093581411
BA154: 146 | BB154: 15735.3944 | BC154: 0.2310372552 | BD154: 20848.3205 | BE154: 0.2272790815
BA155: 147 | BB155: 16575.89782 | BC155: 0.8254364337 | BD155: 21350.77063 | BE155: 1.114681973
BA156: 148 | BB156: 16068.55877 | BC156: 1.784207327 | BD156: 21789.5657 | BE156: 1.839575623
BA157: 149 | BB157: 15802.81914 | BC157: 0.9222424297 | BD157: 20692.3644 | BE157: 0.8847634712
BA158: 150 | BB158: 16967.89001 | BC158: 0.06476652134 | BD158: 20781.87638 | BE158: 0.1281805979
BA159: 151 | BB159: 14083.73714 | BC159: 1.525560421 | BD159: 22032.3811 | BE159: 0.8714065389
BA160: 152 | BB160: 16342.70754 | BC160: 1.403826703 | BD160: 21011.89256 | BE160: 1.757604232
BA161: 153 | BB161: 13145.10236 | BC161: 1.569799611 | BD161: 20095.29307 | BE161: 1.25296046
BA162: 154 | BB162: 16213.70662 | BC162: 0.7081836878 | BD162: 21204.37665 | BE162: 0.6133567932
BA163: 155 | BB163: 15735.67565 | BC163: -0.4253089242 | BD163: 20744.06772 | BE163: -0.3510848241
BA164: 156 | BB164: 16657.81382 | BC164: 0.8065118667 | BD164: 20917.54739 | BE164: 0.8442902542
BA165: 157 | BB165: 10554.90668 | BC165: 2.024101228 | BD165: 21063.53032 | BE165: 0.8038777346
BA166: 158 | BB166: 16459.15515 | BC166: 0.2307649682 | BD166: 21399.92885 | BE166: 0.3893834273
BA167: 159 | BB167: 13438.60203 | BC167: 0.937588749 | BD167: 21354.19927 | BE167: 0.9809471842
BA168: 160 | BB168: 17321.68744 | BC168: 0.9591042956 | BD168: 20949.70302 | BE168: 1.27429203
BA169: 161 | BB169: 18589.54334 | BC169: 0.6697620355 | BD169: 20947.26276 | BE169: 0.9344824974
BA170: 162 | BB170: 16999.36161 | BC170: 1.302882828 | BD170: 21254.15399 | BE170: 1.303828189
BA171: 163 | BB171: 17595.38301 | BC171: 0.008238043856 | BD171: 21247.83064 | BE171: 0.4544316278
BA172: 164 | BB172: 15393.80287 | BC172: 0.8930963155 | BD172: 21357.59515 | BE172: 1.11591488
BA173: 165 | BB173: 15705.38209 | BC173: 1.750285221 | BD173: 20953.7251 | BE173: 1.635833613
BA174: 166 | BB174: 11156.98203 | BC174: 1.881838337 | BD174: 20486.94814 | BE174: 0.728711272
BA175: 167 | BB175: 15522.13956 | BC175: 1.507942251 | BD175: 20836.1125 | BE175: 1.44701956
BA176: 168 | BB176: 15724.69369 | BC176: 0.6615547611 | BD176: 21514.61021 | BE176: 0.5421649861
BA177: 169 | BB177: 16607.9104 | BC177: 0.7028329699 | BD177: 19730.58572 | BE177: 0.8106922262
BA178: 170 | BB178: 17452.29518 | BC178: 0.6957091932 | BD178: 21852.32098 | BE178: 1.32257216
BA179: 171 | BB179: 16434.40753 | BC179: 1.125921687 | BD179: 20927.57067 | BE179: 1.045844239
BA180: 172 | BB180: 13739.40264 | BC180: 1.535152066 | BD180: 20603.87255 | BE180: 1.219124214
BA181: 173 | BB181: 17889.18486 | BC181: 0.9624912663 | BD181: 20550.21027 | BE181: 1.190352804
BA182: 174 | BB182: 14688.37011 | BC182: 1.70557967 | BD182: 20037.85698 | BE182: 1.545733465
BA183: 175 | BB183: 16283.20962 | BC183: 2.081522095 | BD183: 21092.33649 | BE183: 1.784398377
BA184: 176 | BB184: 15996.51401 | BC184: 1.076041331 | BD184: 20443.66606 | BE184: 0.8945401869
BA185: 177 | BB185: 15572.79138 | BC185: 0.6467665224 | BD185: 20876.73003 | BE185: 0.6635636336
BA186: 178 | BB186: 17027.4165 | BC186: 0.7377905035 | BD186: 21322.33192 | BE186: 1.183413025
BA187: 179 | BB187: 14991.80282 | BC187: 0.6391229445 | BD187: 21177.01322 | BE187: 0.2913588326
BA188: 180 | BB188: 17262.44595 | BC188: 1.23665532 | BD188: 20972.87678 | BE188: 1.586018066
BA189: 181 | BB189: 14536.26727 | BC189: 1.149107368 | BD189: 20789.30334 | BE189: 0.9678123879
BA190: 182 | BB190: 18330.5097 | BC190: 0.7677635606 | BD190: 21925.36503 | BE190: 1.108541778
BA191: 183 | BB191: 13244.9072 | BC191: 2.107320435 | BD191: 19982.34197 | BE191: 1.955775738
BA192: 184 | BB192: 18420.57434 | BC192: 0.05744854596 | BD192: 21498.05633 | BE192: 0.7120150729
BA193: 185 | BB193: 14886.6438 | BC193: 0.7099626077 | BD193: 21979.07772 | BE193: 0.3909135726
BA194: 186 | BB194: 17223.87238 | BC194: 0.3022349965 | BD194: 21451.5455 | BE194: 0.7114601196
BA195: 187 | BB195: 10976.27651 | BC195: 1.499692721 | BD195: 19534.11304 | BE195: 0.2107937526
BA196: 188 | BB196: 14670.67584 | BC196: 1.053904664 | BD196: 21418.75588 | BE196: 0.8991649433
BA197: 189 | BB197: 15198.20801 | BC197: 0.5178375749 | BD197: 21312.47201 | BE197: 0.4523492543
BA198: 190 | BB198: 19982.77749 | BC198: 0.4803537311 | BD198: 21644.18073 | BE198: 1.275610337
BA199: 191 | BB199: 15117.98121 | BC199: 0.4999810237 | BD199: 20252.79414 | BE199: 0.6398338531
BA200: 192 | BB200: 18135.55125 | BC200: 0.5981540174 | BD200: 21019.67966 | BE200: 0.7259522653
... 925 more rows

Sheet Parameters
A1: Model Control | E1: opt_modeltype
A2: opt_modeltype | B2: Model Type | C2: Deterministic | E2: Deterministic
E3: Stochastic
A5: Cost Parameters | N5: Moments | P5: Implies
A6: Parameter | B6: Description | C6: Refers to | D6: Value Used | E6: Deterministic | F6: Stochastic | G6: Random | H6: Dist | I6: Param1 | K6: Param2 | N6: Mean | O6: SD | P6: Mean | Q6: SD
A7: Chronic, silent disease | B7: Health state specific costs | C7: Common | D7: =IF(opt_modeltype=$E$2,E7,F7) -> 23.51960197 | E7: 23.51960197 | F7: =_xlfn.LOGNORM.INV(G7,J7,L7) -> 25.3742371 | G7: =RAND() -> 0.2468512794 | H7: lognormal | I7: μ | J7: =LN(N7)-0.5*L7^2 -> 3.329821832 | K7: σ | L7: =SQRT(LN(1+O7^2/N7^2)) -> 0.1403901221 | N7: 28.21 | O7: 3.98 | P7: =EXP(J7+0.5*L7^2) -> 28.21 | Q7: =SQRT(EXP(L7^2)-1)*P7 -> 3.98
A8: Chronic, active disease | B8: Health state specific costs | C8: Common | D8: =IF(opt_modeltype=$E$2,E8,F8) -> 84.4295517 | E8: 84.4295517 | F8: =_xlfn.LOGNORM.INV(G8,J8,L8) -> 87.79518518 | G8: =RAND() -> 0.6144922354 | H8: lognormal | I8: μ | J8: =LN(N8)-0.5*L8^2 -> 4.399884248 | K8: σ | L8: =SQRT(LN(1+O8^2/N8^2)) -> 0.2581111139 | N8: 84.2 | O8: 22.1 | P8: =EXP(J8+0.5*L8^2) -> 84.2 | Q8: =SQRT(EXP(L8^2)-1)*P8 -> 22.1
A9: Complications | B9: Health state specific costs | C9: Common | D9: =IF(opt_modeltype=$E$2,E9,F9) -> 396.9966362 | E9: 396.9966362 | F9: =_xlfn.GAMMA.INV(G9,J9,L9) -> 430.694975 | G9: 0.4613379706 | H9: gamma | I9: α | J9: =N9/L9 -> 577.199958 | K9: b | L9: =O9^2/N9 -> 0.7496362292 | N9: 432.69 | O9: 18.01 | P9: =J9*L9 -> 432.69 | Q9: =SQRT(J9*L9^2) -> 18.01
A10: c_TxA | B10: Cost of Treament A | C10: Treatment A | D10: =IF(opt_modeltype=$E$2,E10,F10) -> 38 | E10: 38 | H10: fixed
A11: c_TxB | B11: Cost of Treament B | C11: Treatment B | D11: =IF(opt_modeltype=$E$2,E11,F11) -> 400 | E11: 400 | H11: fixed
A13: Utility Parameters
A14: Parameter | B14: Description | C14: Refers to | D14: Value Used | E14: Deterministic | F14: Stochastic | G14: Random | H14: Dist | I14: Param1 | K14: Param2 | M14: a + b | N14: Mean | O14: SD | P14: Mean | Q14: SD
A15: Chronic, silent disease | B15: Health state specific Utility | C15: Common | D15: =IF(opt_modeltype=$E$2,E15,F15) -> 0.819 | E15: 0.819 | F15: =_xlfn.BETA.INV(G15,J15,L15) -> 0.8255221111 | G15: =RAND() -> 0.6112553387 | H15: beta | I15: α | J15: =N15*M15 -> 274.482 | K15: b | L15: =M15-J15 -> 60.66085714 | M15: =N15*(1-N15)/O15^2-1 -> 335.1428571 | N15: 0.819 | O15: 0.021 | P15: =J15/(J15+L15) -> 0.819 | Q15: =(J15*L15/((J15+L15)^2*(J15+L15+1)))^0.5 -> 0.021
A16: Chronic, active disease | B16: Health state specific Utility | C16: Common | D16: =IF(opt_modeltype=$E$2,E16,F16) -> 0.653 | E16: 0.653 | F16: =_xlfn.BETA.INV(G16,J16,L16) -> 0.489619937 | G16: =RAND() -> 0.07641561586 | H16: beta | I16: α | J16: =N16*M16 -> 11.80082737 | K16: b | L16: =M16-J16 -> 6.270883764 | M16: =N16*(1-N16)/O16^2-1 -> 18.07171114 | N16: 0.653 | O16: 0.109 | P16: =J16/(J16+L16) -> 0.653 | Q16: =(J16*L16/((J16+L16)^2*(J16+L16+1)))^0.5 -> 0.109
A17: Complications | B17: Health state specific Utility | C17: Common | D17: =IF(opt_modeltype=$E$2,E17,F17) -> -0.137 | E17: -0.137 | F17: =1-F18 -> -0.2608347267 | N17: =1-N18 -> -0.137 | O17: 0.18
B18: DISUTILITY FOR COMPLICATIONS STATE | F18: =_xlfn.GAMMA.INV(G18,J18,L18) -> 1.260834727 | G18: 0.7632542469 | H18: gamma | I18: α | J18: =(N18/O18)^2 -> 39.90027778 | K18: b | L18: =O18^2/N18 -> 0.02849604222 | N18: 1.137 | O18: 0.18
A20: Dirichlet distributions for effectiveness | G20: Random | H20: Dist | I20: Param1 | K20: Param2 | M20: Draw | N20: Mean | O20: SD | P20: Mean | Q20: SD
B21: Probability of silent disease from silent disease | C21: Treatment A | D21: NA | E21: =J21/SUM(J21:J24) -> 0.904 | F21: =M21/SUM(M$21:M$23) -> 0.8799637829 | G21: =RAND() -> 0.1470507034 | H21: gamma | I21: α | J21: 113 | K21: b | L21: 1 | M21: =_xlfn.GAMMA.INV(G21,J21,L21) -> 101.8970161
A22: p_active | B22: Probability of active disease from silent disease | C22: Treatment A | D22: =IF(opt_modeltype=$E$2,E22,F22) -> 0.088 | E22: =J22/SUM(J21:J24) -> 0.088 | F22: =M22/SUM(M$21:M$23) -> 0.1109255966 | G22: =RAND() -> 0.7347555453 | H22: gamma | I22: α | J22: 11 | K22: b | L22: 1 | M22: =_xlfn.GAMMA.INV(G22,J22,L22) -> 12.84483239
A23: p_compl_sil | B23: Probability of complications from silent disease | C23: Treatment A | D23: 0.008 | E23: =J23/SUM(J21:J24) -> 0.008 | F23: =M23/SUM(M$21:M$23) -> 0.009110620536 | G23: 0.6518009475 | H23: gamma | I23: α | J23: 1 | K23: b | L23: 1 | M23: 1.054980973
A24: p_dead_sil | B24: Probability of death from chronic, silent disease | C24: Treatment A | D24: 0 | E24: =J24/SUM(J21:J24) -> 0 | F24: 0
B26: Probability of silent disease from silent disease | C26: Treatment B | D26: NA | E26: =J26/SUM(J26:J29) -> 0.8914386584 | F26: =M26/SUM(M$26:M$29) -> 0.9101495157 | G26: =RAND() -> 0.6199685339 | H26: gamma | I26: α | J26: 1010 | K26: b | L26: 1 | M26: =_xlfn.GAMMA.INV(G26,J26,L26) -> 1019.401636
A27: p_active | B27: Probability of active disease from silent disease | C27: Treatment B | D27: =IF(opt_modeltype=$E$2,E27,F27) -> 0.09267431598 | E27: =J27/SUM(J26:J29) -> 0.09267431598 | F27: =M27/SUM(M$26:M$29) -> 0.08027278973 | G27: =RAND() -> 0.06463708638 | H27: gamma | I27: α | J27: 105 | K27: b | L27: 1 | M27: =_xlfn.GAMMA.INV(G27,J27,L27) -> 89.90853895
A28: p_compl_sil | B28: Probability of complications from silent disease | C28: Treatment B | D28: 0.01412180053 | E28: =J28/SUM(J26:J29) -> 0.01412180053 | F28: 0.008214848447 | G28: 0.02620830944 | H28: gamma | I28: α | J28: 16 | K28: b | L28: 1 | M28: 9.200938749
A29: p_dead_sil | B29: Probability of death from chronic, silent disease | C29: Treatment B | D29: 0.001765225066 | E29: =J29/SUM(J26:J29) -> 0.001765225066 | F29: 0.001362846136 | G29: 0.4509842273 | H29: gamma | I29: α | J29: 2 | K29: b | L29: 1 | M29: =_xlfn.GAMMA.INV(G29,J29,L29) -> 1.52643885
A31: p_success | B31: Probability of silent disease from active disease | C31: Treatment A | D31: =IF(opt_modeltype=$E$2,E31,F31) -> 0.1846153846 | E31: =J31/SUM(J31:J34) -> 0.1846153846 | F31: =M31/SUM(M$31:M$34) -> 0.1311976265 | G31: =RAND() -> 0.04792309281 | H31: gamma | I31: α | J31: 12 | K31: b | L31: 1 | M31: =_xlfn.GAMMA.INV(G31,J31,L31) -> 6.87547085
B32: Probability of active disease from active disease | C32: Treatment A | D32: NA | E32: =J32/SUM(J31:J34) -> 0.6769230769 | F32: =M32/SUM(M$31:M$34) -> 0.737718509 | G32: =RAND() -> 0.214986172 | H32: gamma | I32: α | J32: 44 | K32: b | L32: 1 | M32: =_xlfn.GAMMA.INV(G32,J32,L32) -> 38.66047153
A33: p_compl_act | B33: Probability of complications from active disease | C33: Treatment A | D33: =IF(opt_modeltype=$E$2,E33,F33) -> 0.1230769231 | E33: =J33/SUM(J31:J34) -> 0.1230769231 | F33: 0.1043089338 | G33: 0.1863806607 | H33: gamma | I33: α | J33: 8 | K33: b | L33: 1 | M33: 5.466356772
A34: p_dead_act | B34: Probability of death from chronic, active disease | C34: Treatment A | D34: 0.01538461538 | E34: =J34/SUM(J31:J34) -> 0.01538461538 | F34: 0.02677493068 | G34: 0.7541791673 | H34: gamma | I34: α | J34: 1 | K34: b | L34: 1 | M34: 1.403152331
A36: p_success | B36: Probability of silent disease from active disease | C36: Treatment B | D36: =IF(opt_modeltype=$E$2,E36,F36) -> 0.2119047619 | E36: =J36/SUM(J36:J39) -> 0.2119047619 | F36: =M36/SUM(M$36:M$39) -> 0.217021288 | G36: =RAND() -> 0.6583907693 | H36: gamma | I36: α | J36: 178 | K36: b | L36: 1 | M36: =_xlfn.GAMMA.INV(G36,J36,L36) -> 183.1608723
B37: Probability of active disease from active disease | C37: Treatment B | D37: NA | E37: =J37/SUM(J36:J39) -> 0.6892857143 | F37: =M37/SUM(M$36:M$39) -> 0.6962155893 | G37: =RAND() -> 0.6439579028 | H37: gamma | I37: α | J37: 579 | K37: b | L37: 1 | M37: =_xlfn.GAMMA.INV(G37,J37,L37) -> 587.5896133
A38: p_compl_act | B38: Probability of complications from active disease | C38: Treatment B | D38: =IF(opt_modeltype=$E$2,E38,F38) -> 0.09761904762 | E38: =J38/SUM(J36:J39) -> 0.09761904762 | F38: 0.0856822008 | G38: 0.1405725268 | H38: gamma | I38: α | J38: 82 | K38: b | L38: 1 | M38: 72.31376603
A39: p_dead_act | B39: Probability of death from chronic, active disease | C39: Treatment B | D39: 0.00119047619 | E39: =J39/SUM(J36:J39) -> 0.00119047619 | F39: 0.00108092192 | G39: 0.5983895641 | H39: gamma | I39: α | J39: 1 | K39: b | L39: 1 | M39: 0.9122727251
A41: Parameter | B41: Description | C41: Refers to | D41: Value Used | E41: Deterministic | F41: Stochastic | G41: Random | H41: Dist | I41: Param1 | K41: Param2 | N41: Mean | O41: SD | P41: Mean | Q41: SD
A42: p_dead_cmp | B42: Probability of death from complications state | C42: Common | D42: =IF(opt_modeltype=$E$2,E42,F42) -> 0.003494060098 | E42: 0.003494060098 | F42: =_xlfn.BETA.INV(G42,J42,L42) -> 0.003361385779 | G42: =RAND() -> 0.5252219888 | H42: beta | I42: α | J42: 5 | K42: b | L42: 1426 | P42: =J42/(J42+L42) -> 0.003494060098 | Q42: =(J42*L42/((J42+L42)^2*(J42+L42+1)))^0.5 -> 0.001559314158

Sheet Sheet3

Sheet Sheet1

Sheet Sheet2
